[Event "1000GM Spring Break Schev-A 2024"]
[Site "San Jose"]
[Date "2024.04.01"]
[Round "5.3"]
[White "Arenas, David"]
[Black "Liu, Patrick"]
[Result "1/2-1/2"]
[ECO "B22"]
[WhiteElo "2368"]
[BlackElo "2068"]
[Annotator "RC"]
[PlyCount "50"]
[EventDate "2024.03.28"]
[EventType "schev"]
[EventCountry "USA"]
[SourceTitle "playchess.com"]
[Source "ChessBase"]
[SourceQuality "1"]
[TimeControl "5400+30"]

1. e4 {[%emt 0:05:16]} c5 {[%emt 0:00:03]} 2. Nf3 {[%emt 0:00:05]} e6 {[%emt 0:00:04]} 3. c3 {[%emt 0:00:05]} Nf6 {[%emt 0:00:03]} 4. e5 {[%emt 0:00:06]} Nd5 {[%emt 0:00:02]} 5. d4 {[%emt 0:00:06]} cxd4 {[%emt 0:00:02]} 6. cxd4 {[%emt 0:00:05]} d6 {[%emt 0:00:04]} 7. a3 {[%emt 0:01:08]} Bd7 {[%emt 0:00:12]} 8. Bd3 {[%emt 0:00:16]} Bc6 {[%emt 0:00:30]} 9. O-O {[%emt 0:00:07]} Be7 {[%emt 0:01:49]} 10. Re1 {[%emt 0:00:21]} O-O {[%emt 0:02:00]} 11. Qc2 {[%emt 0:00:47]} h6 {[%emt 0:02:13]} 12. b4 {[%emt 0:13:56]} a6 {[%emt 0:02:07]} 13. Nbd2 {[%emt 0:00:07]} Nd7 {[%emt 0:08:32]} 14. Ne4 {[%emt 0:00:18]} dxe5 {[%emt 0:03:07]} 15. dxe5 {[%emt 0:00:27]} Re8 {[%emt 0:03:24]} 16. Bb2 {[%emt 0:08:20]} Rc8 {[%emt 0:03:31]} 17. Qd2 {[%emt 0:03:17]} b5 {[%emt 0:03:12]} 18. Rac1 {[%emt 0:05:03]} N7b6 {[%emt 0:05:13]} 19. Bd4 {[%emt 0:01:32]} Na4 {[%emt 0:03:15]} 20. Bc5 {[%emt 0:01:33]} Nxc5 {[%emt 0:03:24]} 21. bxc5 {[%emt 0:00:01]} Nf4 {[%emt 0:06:22]} 22. Nd6 {[%emt 0:01:57]} Bg5 {[%emt 0:01:34]} 23. Re3 {[%emt 0:07:54]} Bxf3 {[%emt 0:06:37]} 24. gxf3 {[%emt 0:00:04]} Nxd3 {[%emt 0:45:10]} 25. Qxd3 {[%emt 0:00:01]} Bxe3 {[%emt 0:00:30]} 1/2-1/2

[Event "1000GM Spring Break Schev-A 2024"]
[Site "San Jose"]
[Date "2024.04.01"]
[Round "5.4"]
[White "Yan, Nathan"]
[Black "Alarcon Bahamondez, Roberto Ignacio"]
[Result "1/2-1/2"]
[ECO "B43"]
[WhiteElo "2185"]
[BlackElo "2335"]
[Annotator "RC"]
[PlyCount "60"]
[EventDate "2024.03.28"]
[EventType "schev"]
[EventCountry "USA"]
[SourceTitle "playchess.com"]
[Source "ChessBase"]
[SourceQuality "1"]
[TimeControl "5400+30"]

1. e4 {[%emt 0:06:50]} c5 {[%emt 0:00:31]} 2. Nf3 {[%emt 0:00:28]} e6 {[%emt 0:00:06]} 3. d4 {[%emt 0:00:34]} cxd4 {[%emt 0:00:11]} 4. Nxd4 {[%emt 0:00:01]} a6 {[%emt 0:00:09]} 5. Nc3 {[%emt 0:00:25]} Qc7 {[%emt 0:00:26]} 6. Bd3 {[%emt 0:05:57]} Nf6 {[%emt 0:00:20]} 7. Qe2 {[%emt 0:00:12]} d6 {[%emt 0:00:21]} 8. g4 {[%emt 0:00:08]} g6 {[%emt 0:03:04]} 9. g5 {[%emt 0:02:07]} Nh5 {[%emt 0:01:01]} 10. Be3 {[%emt 0:04:33]} Bg7 {[%emt 0:09:18]} 11. O-O-O {[%emt 0:03:28]} O-O {[%emt 0:00:42]} 12. Qd2 {[%emt 0:01:40]} Nd7 {[%emt 0:12:44]} 13. Be2 {[%emt 0:04:15]} Ne5 {[%emt 0:01:24]} 14. Bxh5 {[%emt 0:05:42]} gxh5 {[%emt 0:03:20]} 15. b3 {[%emt 0:03:11]} Ng4 {[%emt 0:06:11]} 16. h3 {[%emt 0:06:28]} Nxe3 {[%emt 0:00:19]} 17. Qxe3 {[%emt 0:00:13]} Bd7 {[%emt 0:04:52]} 18. Nce2 {[%emt 0:07:46]} Rfc8 {[%emt 0:07:18]} 19. Qd2 {[%emt 0:02:02]} Bb5 {[%emt 0:03:56]} 20. Kb1 {[%emt 0:04:19]} Bxe2 {[%emt 0:06:16]} 21. Nxe2 {[%emt 0:06:37]} a5 {[%emt 0:03:19]} 22. Ng3 {[%emt 0:03:41]} Ra6 {[%emt 0:07:49]} 23. Nxh5 {[%emt 0:01:42]} Bc3 {[%emt 0:02:19]} 24. Nf6+ {[%emt 0:01:48]} Kg7 {[%emt 0:02:14]} 25. Qd3 {[%emt 0:02:36]} Qc5 {[%emt 0:02:15]} 26. e5 {[%emt 0:08:38]} Qa3 {[%emt 0:02:21]} 27. Qxh7+ {[%emt 0:00:10]} Kf8 {[%emt 0:00:07]} 28. Qh8+ {[%emt 0:00:08]} Ke7 {[%emt 0:00:16]} 29. exd6+ {[%emt 0:00:09]} Rxd6 {[%emt 0:00:36]} 30. Ng8+ {[%emt 0:00:21]} Kf8 {[%emt 0:05:52]} 1/2-1/2

[Event "1000GM Spring Break Schev-A 2024"]
[Site "San Jose"]
[Date "2024.04.01"]
[Round "5.5"]
[White "Tang, Dylan"]
[Black "Jimenez Garcia, Emmanuel"]
[Result "0-1"]
[ECO "B55"]
[WhiteElo "2152"]
[BlackElo "2421"]
[Annotator "TA"]
[PlyCount "50"]
[EventDate "2024.03.28"]
[EventType "schev"]
[EventCountry "USA"]
[SourceTitle "playchess.com"]
[Source "ChessBase"]
[SourceQuality "1"]
[TimeControl "5400+30"]

{[%evp 11,50,7,19,24,22,14,20,0,0,0,16,0,2,0,7,4,7,2,0,0,0,0,0,0,0,0,0,0,0,0,0,-89,-93,-97,-95,-107,-99,-864,-864,-789,-830]} 1. e4 {[%emt 0:00:30]} c5 {[%emt 0:00:14]} 2. Nf3 {[%emt 0:02:22]} d6 {[%emt 0:00:05]} 3. d4 {[%emt 0:00:05]} cxd4 {[%emt 0:00:04]} 4. Nxd4 {[%emt 0:00:06]} Nf6 {[%emt 0:00:05]} 5. f3 {[%emt 0:00:04]} e5 {[%emt 0:01:50]} 6. Nb3 {[%emt 0:00:09]} d5 {[%emt 0:01:53]} 7. Bg5 {[%emt 0:01:46]} d4 {[%emt 0:00:29]} 8. c3 {[%emt 0:00:13]} Nc6 {[%emt 0:00:07]} 9. cxd4 {[%emt 0:00:06] The position is equal.} Bb4+ $1 {[%emt 0:00:22]} 10. Bd2 {[%emt 0:00:08][%cal Bg5d2,Bd2b4,Bb4c5][%mdl 32]} Nxe4 $1 {[%emt 0:00:18]} 11. Bxb4 {[%emt 0:00:14]} Qh4+ {[%emt 0:00:07]} 12. g3 {[%emt 0:00:07]} Nxg3 {[%emt 0:00:04]} 13. hxg3 {[%emt 0:00:04]} Qxh1 {[%emt 0:00:05]} 14. Bc5 {[%emt 0:01:14] Qd3 would now be deadly.} Bh3 {[%emt 0:00:29]} 15. N1d2 {[%emt 0:00:36]} O-O-O {[%emt 0:00:29][%cal Re5d4]} 16. Qc2 {[%emt 0:00:47] Threatens to win with 0-0-0.} Bxf1 {[%emt 0:01:56]} 17. O-O-O {[%emt 0:00:08][%cal Oc5a7]} Qh6 {[%emt 0:01:05]} 18. Rxf1 {[%emt 0:00:38] aiming for dxe5.} b6 $1 {[%emt 0:00:27]} 19. dxe5 {[%emt 0:00:36]} bxc5 {[%emt 0:04:31]} 20. Qxc5 {[%emt 0:00:15] Kb1 is the strong threat.} Kb7 {[%emt 0:33:08]} 21. f4 {[%emt 0:14:35] [#]} (21. Kb1 $1 $11 {remains equal.} Rxd2 22. Nxd2 Qxd2 23. Qb5+ Kc7 24. Rc1) 21... Nd4 $1 $36 {[%emt 0:20:28][%mdl 2048] Black has strong initiative.} 22. Na5+ {[%emt 0:10:24]} (22. Nxd4 $2 {perishes.} Rc8 $19) (22. Kb1 Nxb3) 22... Ka8 {[%emt 0:01:07] And now ...Rc8 would win.} 23. Ndc4 {[%emt 0:00:35]} Qe6 {[%emt 0:09:59] Hoping for ...Qf5.} 24. b4 $2 {[%emt 0:26:54][%mdl 8192]} (24. f5 $17 Qd5 25. Qxd5+ Rxd5 26. f6) 24... Rd5 $19 {[%emt 0:01:45]} 25. Qc7 {[%emt 0:01:42] [#]} Rxa5 $1 {[%emt 0:00:25][%mdl 512] Weighted Error Value: White=0.40/Black=0.00 (flawless) .  Loses game:     	White=1     	---        Mistake:       	White=1     	---        OK:         	White=10    	Black=11     Best:        	White=2     	Black=3      Strong:       	---       	Black=3      Brilliant:      	---       	Black=1} 0-1